Workbook

Sheet 4.ресурсное обесп.
F1: Приложение 1 к постановлению от 20.02.2026 №329-па муниципальной программы "Дороги"
I2: Таблица 4
A3: ФИНАНСОВОЕ ОБЕСПЕЧЕНИЕ РЕАЛИЗАЦИИ МУНИЦИПАЛЬНОГО ПРОЕКТА «ДОРОГИ»
A5: Ответственный исполнитель, соисполнители | B5: Источник финансирования | C5: Объем финансирования, рублей
C6: за весь период реализации муниципальной программы | D6: в том числе по годам
D7: 2026 | E7: 2027 | F7: 2028 | G7: 2029 | H7: 2030 | I7: 2031
A8: 2 | B8: 3 | C8: 4 | D8: 5 | E8: 6 | F8: 7 | G8: 8 | H8: 9 | I8: 10
A9: МУНИЦИПАЛЬНАЯ ПРОГРАММА ГОРОДА УСОЛЬЕ-СИБИРСКОЕ «Дороги»
A10: КГХ | B10: Всего, в том числе: | C10: =SUM(C11:C13) -> 1,032,698,733.46 | D10: =SUM(D11:D13) -> 391,049,914.92 | E10: =SUM(E11:E13) -> 336,164,242.38 | F10: =SUM(F11:F13) -> 215,640,294.04 | G10: =SUM(G11:G13) -> 29,948,094.04 | H10: =SUM(H11:H13) -> 29,948,094.04 | I10: =SUM(I11:I13) -> 29,948,094.04
B11: Федеральный бюджет (далее - ФБ) | C11: =SUM(D11:I11) -> 0.00 | D11: =D16+D31 -> 0.00 | E11: =E16+E31 -> 0.00 | F11: 0.00 | G11: 0.00 | H11: 0.00 | I11: 0.00
B12: Областной бюджет (далее - ОБ) | C12: =SUM(D12:I12) -> 627,076,600.00 | D12: =D17+D32 -> 255,692,200.00 | E12: =E17+E32 -> 185,692,200.00 | F12: 185,692,200.00 | G12: 0.00 | H12: 0.00 | I12: 0.00
B13: Местный бюджет (далее - МБ) | C13: =SUM(D13:I13) -> 405,622,133.46 | D13: =D18+D33 -> 135,357,714.92 | E13: =E18+E33 -> 150,472,042.38 | F13: 29,948,094.04 | G13: 29,948,094.04 | H13: 29,948,094.04 | I13: 29,948,094.04
A14: ПРОЕКТНАЯ ЧАСТЬ
A15: КГХ | B15: Всего, в том числе: | C15: =SUM(C16:C18) -> 763,548,661.11 | D15: =D16+D17+D18 -> 300,338,446.11 | E15: 204,057,363.00 | F15: 204,057,363.00 | G15: 18,365,163.00 | H15: 18,365,163.00 | I15: 18,365,163.00
B16: ФБ | C16: =SUM(D16:I16) -> 0.00 | D16: =D21+D26 -> 0.00 | E16: =E21+E26 -> 0.00 | F16: 0.00 | G16: 0.00 | H16: 0.00 | I16: 0.00
B17: ОБ | C17: =SUM(D17:I17) -> 627,076,600.00 | D17: =D22+D27 -> 255,692,200.00 | E17: =E22+E27 -> 185,692,200.00 | F17: 185,692,200.00 | G17: 0.00 | H17: 0.00 | I17: 0.00
B18: МБ | C18: =SUM(D18:I18) -> 136,472,061.11 | D18: =D23+D28 -> 44,646,246.11 | E18: =E23+E28 -> 18,365,163.00 | F18: 18,365,163.00 | G18: 18,365,163.00 | H18: 18,365,163.00 | I18: 18,365,163.00
A19: МУНИЦИПАЛЬНЫЙ ПРОЕКТ «Дорожная сеть»
A20: Отдел по благоустройству и экологии КГХ | B20: Всего, в том числе: | C20: =SUM(C21:C23) -> 742,837,612.59 | D20: =D21+D22+D23 -> 293,826,622.59 | E20: =E21+E22+E23 -> 197,802,198.00 | F20: 197,802,198.00 | G20: 17,802,198.00 | H20: 17,802,198.00 | I20: 17,802,198.00
B21: ФБ | C21: =SUM(D21:I21) -> 0.00 | D21: 0.00 | E21: 0.00 | F21: 0.00 | G21: 0.00 | H21: 0.00 | I21: 0.00
B22: ОБ | C22: =SUM(D22:I22) -> 610,000,000.00 | D22: 250,000,000.00 | E22: 180,000,000.00 | F22: 180,000,000.00 | G22: 0.00 | H22: 0.00 | I22: 0.00
B23: МБ | C23: =SUM(D23:I23) -> 132,837,612.59 | D23: 43,826,622.59 | E23: 17,802,198.00 | F23: 17,802,198.00 | G23: 17,802,198.00 | H23: 17,802,198.00 | I23: 17,802,198.00
A24: МУНИЦИПАЛЬНЫЙ ПРОЕКТ «Безопасность дорожного движения»
A25: Отдел по благоустройству и экологии КГХ | B25: Всего, в том числе: | C25: =SUM(C26:C28) -> 20,711,048.52 | D25: =SUM(D26:D28) -> 6,511,823.52 | E25: =SUM(E26:E28) -> 6,255,165.00 | F25: 6,255,165.00 | G25: 562,965.00 | H25: 562,965.00 | I25: 562,965.00
B26: ФБ | C26: =SUM(D26:I26) -> 0.00 | D26: 0.00 | E26: 0.00 | F26: 0.00 | G26: 0.00 | H26: 0.00 | I26: 0.00
B27: ОБ | C27: =SUM(D27:I27) -> 17,076,600.00 | D27: 5,692,200.00 | E27: 5,692,200.00 | F27: 5,692,200.00 | G27: 0.00 | H27: 0.00 | I27: 0.00
B28: МБ | C28: 3,634,448.52 | D28: 819,623.52 | E28: 562,965.00 | F28: 562,965.00 | G28: 562,965.00 | H28: 562,965.00 | I28: 562,965.00
A29: ПРОЦЕССНАЯ ЧАСТЬ
A30: Отдел по благоустройству и экологии КГХ | B30: Всего, в том числе: | C30: =SUM(C31:C33) -> 269,150,072.35 | D30: =D31+D32+D33 -> 90,711,468.81 | E30: =E31+E32+E33 -> 132,106,879.38 | F30: 11,582,931.04 | G30: 11,582,931.04 | H30: 11,582,931.04 | I30: 11,582,931.04
B31: ФБ | C31: =SUM(D31:I31) -> 0.00 | D31: =D36 -> 0.00 | E31: =E36 -> 0.00 | F31: 0.00 | G31: 0.00 | H31: 0.00 | I31: 0.00
B32: ОБ | C32: =SUM(D32:I32) -> 0.00 | D32: =D37 -> 0.00 | E32: =E37 -> 0.00 | F32: 0.00 | G32: 0.00 | H32: 0.00 | I32: 0.00
B33: МБ | C33: =SUM(D33:I33) -> 269,150,072.35 | D33: =D38 -> 90,711,468.81 | E33: =E38 -> 132,106,879.38 | F33: 11,582,931.04 | G33: 11,582,931.04 | H33: 11,582,931.04 | I33: 11,582,931.04
A34: КОМПЛЕКС ПРОЦЕССНЫХ МЕРОПРИЯТИЙ «Обеспечение реализации муниципальной политики в сфере дорожного хозяйства и безопасности дорожного движения»
A35: Отдел по благоустройству и экологии КГХ | B35: Всего, в том числе: | C35: =SUM(C36:C38) -> 269,150,072.35 | D35: =D36+D37+D38 -> 90,711,468.81 | E35: =E36+E37+E38 -> 132,106,879.38 | F35: 11,582,931.04 | G35: 11,582,931.04 | H35: 11,582,931.04 | I35: 11,582,931.04
B36: ФБ | C36: =SUM(D36:I36) -> 0.00 | D36: 0.00 | E36: 0.00 | F36: 0.00 | G36: 0.00 | H36: 0.00 | I36: 0.00
B37: ОБ | C37: =SUM(D37:I37) -> 0.00 | D37: 0.00 | E37: 0.00 | F37: 0.00 | G37: 0.00 | H37: 0.00 | I37: 0.00
B38: МБ | C38: =SUM(D38:I38) -> 269,150,072.35 | D38: 90,711,468.81 | E38: 132,106,879.38 | F38: 11,582,931.04 | G38: 11,582,931.04 | H38: 11,582,931.04 | I38: 11,582,931.04
A42: Мэр города | G42: М.В. Торопкин
